[Event "*** SCC Grand Prix: Titled Tuesday Blitz"]
[Site "Chess.com"]
[Date "2020.08.25"]
[Round "5"]
[White "Eliwood44"]
[Black "Aygehovit1992"]
[Result "0-1"]
[WhiteElo "2381"]
[BlackElo "2610"]
[TimeControl "180+1"]
[EndTime "10:58:11 PDT"]
[Termination "Aygehovit1992 won on time"]

1. d4 {[%clk 0:03:00.9]} 1... Nf6 {[%clk 0:02:57.4]} 2. Nf3 {[%clk 0:03:00.7]}
2... g6 {[%clk 0:02:57.4]} 3. Nc3 {[%clk 0:03:00.4]} 3... d5 {[%clk 0:02:56.7]}
4. Bf4 {[%clk 0:02:55.5]} 4... Bg7 {[%clk 0:02:56.1]} 5. e3 {[%clk 0:02:56]}
5... c6 {[%clk 0:02:56.3]} 6. Be2 {[%clk 0:02:53.3]} 6... Bg4 {[%clk 0:02:56.1]}
7. Ne5 {[%clk 0:02:52.9]} 7... Bxe2 {[%clk 0:02:55.2]} 8. Qxe2 {[%clk
0:02:53.2]} 8... Nbd7 {[%clk 0:02:56]} 9. h4 {[%clk 0:02:53.1]} 9... h5 {[%clk
0:02:55.8]} 10. O-O-O {[%clk 0:02:52.5]} 10... Qa5 {[%clk 0:02:53.4]} 11. Kb1
{[%clk 0:02:51.1]} 11... e6 {[%clk 0:02:51.2]} 12. f3 {[%clk 0:02:50.6]} 12...
Nxe5 {[%clk 0:02:49.1]} 13. Bxe5 {[%clk 0:02:50]} 13... b5 {[%clk 0:02:49]} 14.
Qd2 {[%clk 0:02:42.3]} 14... b4 {[%clk 0:02:47.6]} 15. Ne2 {[%clk 0:02:42.3]}
15... Qb5 {[%clk 0:02:43.9]} 16. Qd3 {[%clk 0:02:34.5]} 16... a5 {[%clk
0:02:37.7]} 17. e4 {[%clk 0:02:28.4]} 17... O-O {[%clk 0:02:21.5]} 18. Qxb5
{[%clk 0:02:21.6]} 18... cxb5 {[%clk 0:02:22.4]} 19. Bxf6 {[%clk 0:02:21.8]}
19... Bxf6 {[%clk 0:02:21.9]} 20. exd5 {[%clk 0:02:22.2]} 20... exd5 {[%clk
0:02:22.8]} 21. Nf4 {[%clk 0:02:22.4]} 21... Rfd8 {[%clk 0:02:22.5]} 22. g4
{[%clk 0:02:22.1]} 22... hxg4 {[%clk 0:02:22.1]} 23. fxg4 {[%clk 0:02:23]} 23...
Ra6 {[%clk 0:02:13.8]} 24. g5 {[%clk 0:02:22.6]} 24... Bg7 {[%clk 0:02:12.8]}
25. h5 {[%clk 0:02:22.6]} 25... gxh5 {[%clk 0:02:13.3]} 26. Nxh5 {[%clk
0:02:21.8]} 26... Rg6 {[%clk 0:02:11.5]} 27. Rhg1 {[%clk 0:02:19]} 27... Re8
{[%clk 0:02:06.7]} 28. Nf4 {[%clk 0:02:18.1]} 28... Rd6 {[%clk 0:02:05.7]} 29.
g6 {[%clk 0:02:16.1]} 29... Re4 {[%clk 0:01:58]} 30. gxf7+ {[%clk 0:02:10.8]}
30... Kxf7 {[%clk 0:01:58.9]} 31. Rdf1 {[%clk 0:02:08]} 31... Bxd4 {[%clk
0:01:52.7]} 32. Nxd5+ {[%clk 0:01:41.9]} 32... Ke6 {[%clk 0:01:08.4]} 33. Nc7+
{[%clk 0:01:34.5]} 33... Kd7 {[%clk 0:01:08.5]} 34. Nxb5 {[%clk 0:01:29.3]}
34... Bxg1 {[%clk 0:01:04.6]} 35. Nxd6 {[%clk 0:01:26.9]} 35... Rg4 {[%clk
0:01:03.7]} 36. Ne4 {[%clk 0:00:59.1]} 36... Kc6 {[%clk 0:00:59.2]} 37. Nd2
{[%clk 0:00:54.3]} 37... Be3 {[%clk 0:00:48.7]} 38. Nf3 {[%clk 0:00:50]} 38...
Kb5 {[%clk 0:00:48.1]} 39. Ne1 {[%clk 0:00:45.4]} 39... a4 {[%clk 0:00:44.5]}
40. Nd3 {[%clk 0:00:44.5]} 40... Rg2 {[%clk 0:00:39.8]} 41. b3 {[%clk
0:00:35.9]} 41... a3 {[%clk 0:00:39.5]} 42. Re1 {[%clk 0:00:19.7]} 42... Bd2
{[%clk 0:00:37.9]} 43. Rd1 {[%clk 0:00:17.5]} 43... Bc3 {[%clk 0:00:38.1]} 44.
Nf4 {[%clk 0:00:14]} 44... Rh2 {[%clk 0:00:36]} 45. Nd5 {[%clk 0:00:13.1]} 45...
Bd2 {[%clk 0:00:35.7]} 46. Rf1 {[%clk 0:00:10]} 46... Kc5 {[%clk 0:00:34.2]} 47.
Nf6 {[%clk 0:00:09.6]} 47... Kd4 {[%clk 0:00:32.9]} 48. Ng4 {[%clk 0:00:08.8]}
48... Re2 {[%clk 0:00:32.4]} 49. Nf6 {[%clk 0:00:08.2]} 49... Bg5 {[%clk
0:00:28.8]} 50. Nd7 {[%clk 0:00:04.8]} 50... Kc3 {[%clk 0:00:26.4]} 51. Nb6
{[%clk 0:00:03.7]} 51... Kd4 {[%clk 0:00:13.4]} 52. Nc4 {[%clk 0:00:01.7]} 52...
Rg2 {[%clk 0:00:11.2]} 0-1

[Event "*** SCC Grand Prix: Titled Tuesday Blitz"]
[Site "Chess.com"]
[Date "2020.08.25"]
[Round "5"]
[White "DenLaz"]
[Black "Siemba"]
[Result "1-0"]
[WhiteElo "2713"]
[BlackElo "2477"]
[TimeControl "180+1"]
[EndTime "10:58:20 PDT"]
[Termination "DenLaz won by checkmate"]

1. d4 {[%clk 0:02:56.9]} 1... d5 {[%clk 0:02:59.8]} 2. c4 {[%clk 0:02:56.2]}
2... c5 {[%clk 0:03:00.2]} 3. cxd5 {[%clk 0:02:53.5]} 3... Nf6 {[%clk
0:03:00.4]} 4. dxc5 {[%clk 0:02:43.8]} 4... e6 {[%clk 0:03:00.6]} 5. dxe6 {[%clk
0:02:28.4]} 5... Qxd1+ {[%clk 0:03:00.2]} 6. Kxd1 {[%clk 0:02:28.8]} 6... Bxe6
{[%clk 0:03:01.1]} 7. Nc3 {[%clk 0:02:22.1]} 7... Bxc5 {[%clk 0:02:55.5]} 8. e3
{[%clk 0:02:21.1]} 8... Nc6 {[%clk 0:02:55.2]} 9. a3 {[%clk 0:02:19.6]} 9...
Bb3+ {[%clk 0:02:45.3]} 10. Ke1 {[%clk 0:02:18.2]} 10... O-O {[%clk 0:02:24.9]}
11. Nf3 {[%clk 0:02:16.1]} 11... Rfe8 {[%clk 0:02:15.3]} 12. Be2 {[%clk
0:02:10.5]} 12... a6 {[%clk 0:02:03]} 13. Nd2 {[%clk 0:01:53.6]} 13... Na5
{[%clk 0:01:06.8]} 14. Nxb3 {[%clk 0:01:46.8]} 14... Nxb3 {[%clk 0:01:07.7]} 15.
Rb1 {[%clk 0:01:47.5]} 15... Rac8 {[%clk 0:01:05.5]} 16. Bd1 {[%clk 0:01:40.9]}
16... Nxc1 {[%clk 0:00:20.2]} 17. Rxc1 {[%clk 0:01:41.8]} 17... Be7 {[%clk
0:00:08.3]} 18. Bf3 {[%clk 0:01:39.3]} 18... Rc7 {[%clk 0:00:04.8]} 19. Ke2
{[%clk 0:01:37.6]} 19... Rec8 {[%clk 0:00:04.7]} 20. Rhd1 {[%clk 0:01:33.3]}
20... b5 {[%clk 0:00:04.8]} 21. Na2 {[%clk 0:01:30]} 21... Rc2+ {[%clk
0:00:03.7]} 22. Rxc2 {[%clk 0:01:30]} 22... Rxc2+ {[%clk 0:00:04.6]} 23. Rd2
{[%clk 0:01:30.8]} 23... Rxd2+ {[%clk 0:00:03.5]} 24. Kxd2 {[%clk 0:01:31.7]}
24... Kf8 {[%clk 0:00:03.3]} 25. b4 {[%clk 0:01:25]} 25... Nd7 {[%clk
0:00:02.8]} 26. Bb7 {[%clk 0:01:23]} 26... Nb8 {[%clk 0:00:03.5]} 27. Kd3 {[%clk
0:01:17.5]} 27... Bf6 {[%clk 0:00:03.4]} 28. f4 {[%clk 0:01:14.7]} 28... Bb2
{[%clk 0:00:03.2]} 29. Kc2 {[%clk 0:01:15.2]} 29... Bf6 {[%clk 0:00:02.7]} 30.
e4 {[%clk 0:01:15.3]} 30... Bd4 {[%clk 0:00:03.1]} 31. Nc1 {[%clk 0:01:07.7]}
31... Bg1 {[%clk 0:00:02.7]} 32. h3 {[%clk 0:01:07.5]} 32... Bd4 {[%clk
0:00:03]} 33. Nd3 {[%clk 0:01:07.4]} 33... Ke7 {[%clk 0:00:01.6]} 34. g4 {[%clk
0:00:59.3]} 34... g6 {[%clk 0:00:01.6]} 35. e5 {[%clk 0:00:58.2]} 35... h5
{[%clk 0:00:01.7]} 36. Kd2 {[%clk 0:00:53.7]} 36... hxg4 {[%clk 0:00:02.5]} 37.
hxg4 {[%clk 0:00:54.6]} 37... Kd7 {[%clk 0:00:03.2]} 38. Ke2 {[%clk 0:00:54.7]}
38... Kc7 {[%clk 0:00:03.5]} 39. Bd5 {[%clk 0:00:55.3]} 39... f6 {[%clk
0:00:03.5]} 40. Kf3 {[%clk 0:00:53.7]} 40... fxe5 {[%clk 0:00:03.7]} 41. fxe5
{[%clk 0:00:54.6]} 41... Nd7 {[%clk 0:00:03.6]} 42. Ke4 {[%clk 0:00:55.2]} 42...
Bc3 {[%clk 0:00:03.3]} 43. Bf7 {[%clk 0:00:52.3]} 43... Nf8 {[%clk 0:00:03.6]}
44. Kd5 {[%clk 0:00:48.6]} 44... a5 {[%clk 0:00:03.5]} 45. e6 {[%clk 0:00:43.6]}
45... Kd8 {[%clk 0:00:01.7]} 46. bxa5 {[%clk 0:00:43.3]} 46... Bxa5 {[%clk
0:00:01.8]} 47. Kc6 {[%clk 0:00:42.2]} 47... Bc7 {[%clk 0:00:01.1]} 48. Kxb5
{[%clk 0:00:41.9]} 48... Ke7 {[%clk 0:00:01.7]} 49. Kc6 {[%clk 0:00:42.5]} 49...
Bg3 {[%clk 0:00:01.3]} 50. Kd5 {[%clk 0:00:42.8]} 50... Bh2 {[%clk 0:00:01.4]}
51. a4 {[%clk 0:00:42.6]} 51... Bc7 {[%clk 0:00:02]} 52. Ne5 {[%clk 0:00:41.2]}
52... Bxe5 {[%clk 0:00:01.1]} 53. Kxe5 {[%clk 0:00:42.1]} 53... g5 {[%clk
0:00:01.6]} 54. a5 {[%clk 0:00:41.6]} 54... Nh7 {[%clk 0:00:01.8]} 55. a6 {[%clk
0:00:42.1]} 55... Kf8 {[%clk 0:00:02.6]} 56. a7 {[%clk 0:00:42.1]} 56... Kg7
{[%clk 0:00:03.4]} 57. a8=Q {[%clk 0:00:42.2]} 57... Nf6 {[%clk 0:00:04.1]} 58.
Kf5 {[%clk 0:00:39.5]} 58... Nh7 {[%clk 0:00:03.5]} 59. Qa1+ {[%clk 0:00:39.7]}
59... Kh6 {[%clk 0:00:03.3]} 60. Bg6 {[%clk 0:00:33.7]} 60... Nf6 {[%clk
0:00:03.2]} 61. Qa7 {[%clk 0:00:29.8]} 61... Nd7 {[%clk 0:00:02.8]} 62. exd7
{[%clk 0:00:29.9]} 62... Kg7 {[%clk 0:00:03.3]} 63. d8=Q+ {[%clk 0:00:30.4]}
63... Kh6 {[%clk 0:00:04.1]} 64. Qh7# {[%clk 0:00:30.8]} 1-0

[Event "*** SCC Grand Prix: Titled Tuesday Blitz"]
[Site "Chess.com"]
[Date "2020.08.25"]
[Round "5"]
[White "mamey78"]
[Black "AldokhinIvan"]
[Result "1-0"]
[WhiteElo "2424"]
[BlackElo "2538"]
[TimeControl "180+1"]
[EndTime "10:58:22 PDT"]
[Termination "mamey78 won by checkmate"]

1. e4 {[%clk 0:03:00.9]} 1... e6 {[%clk 0:03:00]} 2. d4 {[%clk 0:02:58.1]} 2...
d5 {[%clk 0:03:00.4]} 3. Nc3 {[%clk 0:02:56]} 3... Bb4 {[%clk 0:03:00.3]} 4. e5
{[%clk 0:02:54.7]} 4... Qd7 {[%clk 0:03:00.4]} 5. Qg4 {[%clk 0:02:50.4]} 5... f5
{[%clk 0:02:59.7]} 6. Qh5+ {[%clk 0:02:49.1]} 6... Qf7 {[%clk 0:02:58.7]} 7. Qd1
{[%clk 0:02:47.3]} 7... b6 {[%clk 0:02:53.6]} 8. Nh3 {[%clk 0:02:42.5]} 8... h6
{[%clk 0:02:43.2]} 9. Nf4 {[%clk 0:02:21.1]} 9... Ne7 {[%clk 0:02:39.3]} 10. h4
{[%clk 0:02:16.1]} 10... Bb7 {[%clk 0:02:35.6]} 11. Bb5+ {[%clk 0:02:03.8]}
11... Nbc6 {[%clk 0:02:29.5]} 12. h5 {[%clk 0:01:42.2]} 12... a6 {[%clk
0:02:27.2]} 13. Be2 {[%clk 0:01:38.8]} 13... Bxc3+ {[%clk 0:02:00.1]} 14. bxc3
{[%clk 0:01:36.7]} 14... Na5 {[%clk 0:02:00.5]} 15. Qd3 {[%clk 0:01:29.8]} 15...
Nc4 {[%clk 0:01:57.9]} 16. a4 {[%clk 0:01:27.3]} 16... O-O-O {[%clk 0:01:56.2]}
17. Qf3 {[%clk 0:01:19.5]} 17... Kb8 {[%clk 0:01:36.9]} 18. Ba3 {[%clk
0:01:13.2]} 18... Rhg8 {[%clk 0:01:31]} 19. Rh3 {[%clk 0:01:06.6]} 19... Nxa3
{[%clk 0:01:14.3]} 20. Rxa3 {[%clk 0:01:04.2]} 20... Nc6 {[%clk 0:01:14.9]} 21.
Rg3 {[%clk 0:01:00.1]} 21... Na5 {[%clk 0:01:14.1]} 22. Rg6 {[%clk 0:00:56.7]}
22... Rde8 {[%clk 0:01:12.9]} 23. Ra1 {[%clk 0:00:53.3]} 23... Qd7 {[%clk
0:01:09.7]} 24. Qg3 {[%clk 0:00:50.7]} 24... Nc4 {[%clk 0:01:06.6]} 25. Bd3
{[%clk 0:00:46.4]} 25... Ka7 {[%clk 0:01:04.3]} 26. Kf1 {[%clk 0:00:45.1]} 26...
Bc6 {[%clk 0:00:58]} 27. Kg1 {[%clk 0:00:44.7]} 27... Bxa4 {[%clk 0:00:54.1]}
28. Rxe6 {[%clk 0:00:41.2]} 28... Rxe6 {[%clk 0:00:46.6]} 29. Bxf5 {[%clk
0:00:41.2]} 29... Bxc2 {[%clk 0:00:30.8]} 30. Bxe6 {[%clk 0:00:39.5]} 30... Qd8
{[%clk 0:00:27.1]} 31. Bxg8 {[%clk 0:00:36.8]} 31... Qxg8 {[%clk 0:00:28]} 32.
e6 {[%clk 0:00:34.2]} 32... Nd6 {[%clk 0:00:19.6]} 33. Re1 {[%clk 0:00:34.2]}
33... Bf5 {[%clk 0:00:18.4]} 34. Nxd5 {[%clk 0:00:30]} 34... Kb7 {[%clk
0:00:14.7]} 35. Ne7 {[%clk 0:00:28.2]} 35... Qf8 {[%clk 0:00:13]} 36. Nxf5
{[%clk 0:00:27.9]} 36... Qxf5 {[%clk 0:00:13.9]} 37. e7 {[%clk 0:00:22.9]} 37...
Qd7 {[%clk 0:00:12.9]} 38. Qxd6 {[%clk 0:00:20.4]} 38... Qxd6 {[%clk 0:00:10.1]}
39. e8=Q {[%clk 0:00:21.3]} 39... a5 {[%clk 0:00:08.7]} 40. Qe4+ {[%clk
0:00:19.5]} 40... Ka7 {[%clk 0:00:08.5]} 41. Qf3 {[%clk 0:00:19.5]} 41... a4
{[%clk 0:00:07.9]} 42. Re8 {[%clk 0:00:19.4]} 42... Ka6 {[%clk 0:00:05.2]} 43.
c4 {[%clk 0:00:17.3]} 43... c6 {[%clk 0:00:04.5]} 44. Ra8+ {[%clk 0:00:14.7]}
44... Kb7 {[%clk 0:00:04.9]} 45. Rxa4 {[%clk 0:00:10.8]} 45... Qe7 {[%clk
0:00:04.8]} 46. Qe3 {[%clk 0:00:08.9]} 46... Qf7 {[%clk 0:00:02.9]} 47. Qa3
{[%clk 0:00:06.9]} 47... Qxc4 {[%clk 0:00:01.6]} 48. Ra7+ {[%clk 0:00:06.1]}
48... Kc8 {[%clk 0:00:02.1]} 49. Qf8# {[%clk 0:00:04.6]} 1-0

[Event "*** SCC Grand Prix: Titled Tuesday Blitz"]
[Site "Chess.com"]
[Date "2020.08.25"]
[Round "5"]
[White "wonderfultime"]
[Black "Bulldog167"]
[Result "1-0"]
[WhiteElo "2893"]
[BlackElo "2680"]
[TimeControl "180+1"]
[EndTime "10:58:27 PDT"]
[Termination "wonderfultime won on time"]

1. d4 {[%clk 0:03:00.9]} 1... Nf6 {[%clk 0:02:59.5]} 2. Nf3 {[%clk 0:03:01.5]}
2... e6 {[%clk 0:02:58.5]} 3. Bf4 {[%clk 0:03:02]} 3... b6 {[%clk 0:02:55.8]} 4.
Nbd2 {[%clk 0:02:58.6]} 4... Bb7 {[%clk 0:02:55.8]} 5. e3 {[%clk 0:02:58.7]}
5... c5 {[%clk 0:02:55.5]} 6. Bd3 {[%clk 0:02:57.6]} 6... cxd4 {[%clk
0:02:50.5]} 7. exd4 {[%clk 0:02:56.3]} 7... Be7 {[%clk 0:02:50.8]} 8. O-O {[%clk
0:02:55.8]} 8... O-O {[%clk 0:02:49.6]} 9. Re1 {[%clk 0:02:56.3]} 9... d6 {[%clk
0:02:49.9]} 10. c3 {[%clk 0:02:48.4]} 10... Nbd7 {[%clk 0:02:49.5]} 11. Qc2
{[%clk 0:02:46]} 11... Re8 {[%clk 0:02:48]} 12. Ng5 {[%clk 0:02:41.9]} 12... Nf8
{[%clk 0:02:41.4]} 13. Nge4 {[%clk 0:02:40.4]} 13... Ng6 {[%clk 0:02:35.3]} 14.
Nxf6+ {[%clk 0:02:24.9]} 14... Bxf6 {[%clk 0:02:34.5]} 15. Bg3 {[%clk
0:02:25.8]} 15... a6 {[%clk 0:02:25.6]} 16. a4 {[%clk 0:02:14.8]} 16... Be7
{[%clk 0:02:23.6]} 17. Qb3 {[%clk 0:02:08.4]} 17... Qc7 {[%clk 0:02:19.1]} 18.
Nc4 {[%clk 0:02:03.1]} 18... b5 {[%clk 0:01:27.8]} 19. axb5 {[%clk 0:01:53.5]}
19... axb5 {[%clk 0:01:28.7]} 20. Qxb5 {[%clk 0:01:53.5]} 20... Bc6 {[%clk
0:01:09.8]} 21. Qb6 {[%clk 0:01:51]} 21... Qxb6 {[%clk 0:01:04]} 22. Nxb6 {[%clk
0:01:51.9]} 22... Rab8 {[%clk 0:01:04.3]} 23. Nc4 {[%clk 0:01:52.2]} 23... Bb5
{[%clk 0:00:59.5]} 24. b3 {[%clk 0:01:08.6]} 24... Ra8 {[%clk 0:00:55.1]} 25.
Bxg6 {[%clk 0:00:59.9]} 25... Bxc4 {[%clk 0:00:44.2]} 26. Bxf7+ {[%clk 0:00:56]}
26... Kxf7 {[%clk 0:00:45.1]} 27. bxc4 {[%clk 0:00:56.9]} 27... Rec8 {[%clk
0:00:44.7]} 28. Rab1 {[%clk 0:00:25]} 28... Ra7 {[%clk 0:00:44.4]} 29. Rb4
{[%clk 0:00:14.9]} 29... Rac7 {[%clk 0:00:42.6]} 30. Reb1 {[%clk 0:00:14.1]}
30... Rxc4 {[%clk 0:00:42.2]} 31. Rxc4 {[%clk 0:00:15]} 31... Rxc4 {[%clk
0:00:42.9]} 32. Rb3 {[%clk 0:00:15.9]} 32... e5 {[%clk 0:00:19.2]} 33. dxe5
{[%clk 0:00:15]} 33... dxe5 {[%clk 0:00:20]} 34. Kf1 {[%clk 0:00:12.8]} 34... e4
{[%clk 0:00:17.5]} 35. Bf4 {[%clk 0:00:12.6]} 35... Bf6 {[%clk 0:00:17.2]} 36.
Bd2 {[%clk 0:00:13.1]} 36... Ke6 {[%clk 0:00:17.1]} 37. Ke2 {[%clk 0:00:13.3]}
37... Kd5 {[%clk 0:00:17.6]} 38. h3 {[%clk 0:00:11.2]} 38... h6 {[%clk 0:00:17]}
39. Ra3 {[%clk 0:00:10.7]} 39... Rc8 {[%clk 0:00:16.4]} 40. Kd1 {[%clk
0:00:09.5]} 40... Be5 {[%clk 0:00:14.6]} 41. Kc2 {[%clk 0:00:08.8]} 41... Bd6
{[%clk 0:00:13.8]} 42. Ra5+ {[%clk 0:00:08.6]} 42... Ke6 {[%clk 0:00:12.1]} 43.
Ra4 {[%clk 0:00:07.3]} 43... Kd5 {[%clk 0:00:12]} 44. Rd4+ {[%clk 0:00:07.4]}
44... Ke5 {[%clk 0:00:08.1]} 45. Be3 {[%clk 0:00:07.9]} 45... Be7 {[%clk
0:00:03.6]} 46. Rd7 {[%clk 0:00:06.6]} 46... Bf6 {[%clk 0:00:03.9]} 47. Ra7
{[%clk 0:00:03.1]} 47... Ke6 {[%clk 0:00:04.3]} 48. Ra3 {[%clk 0:00:03.6]} 48...
h5 {[%clk 0:00:04.1]} 49. Rb3 {[%clk 0:00:04]} 49... Kf5 {[%clk 0:00:03.9]} 50.
Kd2 {[%clk 0:00:04.1]} 50... g5 {[%clk 0:00:04.1]} 51. Bd4 {[%clk 0:00:04.3]}
51... Bxd4 {[%clk 0:00:03.7]} 52. cxd4 {[%clk 0:00:05.2]} 52... Ra8 {[%clk
0:00:02.7]} 53. Rb5+ {[%clk 0:00:05.6]} 53... Kf6 {[%clk 0:00:02.3]} 54. Ke3
{[%clk 0:00:05.8]} 54... Ra2 {[%clk 0:00:02.3]} 55. h4 {[%clk 0:00:05.9]} 55...
gxh4 {[%clk 0:00:01.5]} 56. Rxh5 {[%clk 0:00:06.4]} 1-0

[Event "*** SCC Grand Prix: Titled Tuesday Blitz"]
[Site "Chess.com"]
[Date "2020.08.25"]
[Round "5"]
[White "MYMChessAcademy"]
[Black "dolynachess"]
[Result "0-1"]
[WhiteElo "2113"]
[BlackElo "2419"]
[TimeControl "180+1"]
[EndTime "10:58:29 PDT"]
[Termination "dolynachess won by checkmate"]

1. e4 {[%clk 0:03:00.7]} 1... c5 {[%clk 0:02:56.3]} 2. Nf3 {[%clk 0:03:00.2]}
2... d6 {[%clk 0:02:54.6]} 3. d4 {[%clk 0:03:00]} 3... cxd4 {[%clk 0:02:55.5]}
4. Nxd4 {[%clk 0:03:00.5]} 4... Nf6 {[%clk 0:02:56]} 5. Nc3 {[%clk 0:03:00.4]}
5... a6 {[%clk 0:02:43]} 6. Be2 {[%clk 0:02:58.8]} 6... e6 {[%clk 0:02:42.5]} 7.
Be3 {[%clk 0:02:57.2]} 7... Be7 {[%clk 0:02:42.2]} 8. g4 {[%clk 0:02:56.5]} 8...
h6 {[%clk 0:02:41.5]} 9. f4 {[%clk 0:02:55.3]} 9... b5 {[%clk 0:02:35.2]} 10. a3
{[%clk 0:02:50.9]} 10... Bb7 {[%clk 0:02:35]} 11. Bf3 {[%clk 0:02:44.6]} 11...
Qc7 {[%clk 0:02:34.8]} 12. g5 {[%clk 0:02:42.9]} 12... hxg5 {[%clk 0:02:32.7]}
13. fxg5 {[%clk 0:02:43.8]} 13... Nfd7 {[%clk 0:02:26.5]} 14. h4 {[%clk
0:02:42.3]} 14... g6 {[%clk 0:02:19.7]} 15. Qd2 {[%clk 0:02:39.8]} 15... Nc6
{[%clk 0:02:19.3]} 16. O-O-O {[%clk 0:02:37.8]} 16... Nde5 {[%clk 0:02:14]} 17.
Be2 {[%clk 0:02:27.3]} 17... Rc8 {[%clk 0:02:08.4]} 18. h5 {[%clk 0:02:20.7]}
18... gxh5 {[%clk 0:01:57.4]} 19. Rxh5 {[%clk 0:02:08.5]} 19... Rxh5 {[%clk
0:01:52.4]} 20. Bxh5 {[%clk 0:02:08.6]} 20... Nc4 {[%clk 0:01:20.7]} 21. Qf2
{[%clk 0:02:01]} 21... Nd8 {[%clk 0:01:02.6]} 22. Rf1 {[%clk 0:01:41.6]} 22...
Nxe3 {[%clk 0:00:53]} 23. Bxf7+ {[%clk 0:01:19.9]} 23... Kd7 {[%clk 0:00:36.7]}
24. Qxe3 {[%clk 0:01:17.7]} 24... Qc4 {[%clk 0:00:31.5]} 25. Rf2 {[%clk
0:01:03.2]} 25... Nxf7 {[%clk 0:00:26.1]} 26. Rxf7 {[%clk 0:01:01.5]} 26... Rh8
{[%clk 0:00:25.8]} 27. b3 {[%clk 0:00:53.9]} 27... Qc5 {[%clk 0:00:20.1]} 28.
Qf2 {[%clk 0:00:46.6]} 28... Qxg5+ {[%clk 0:00:16.5]} 29. Kb2 {[%clk 0:00:44.6]}
29... Rh1 {[%clk 0:00:15.5]} 30. Nce2 {[%clk 0:00:35.2]} 30... Bxe4 {[%clk
0:00:11.6]} 31. Qf4 {[%clk 0:00:27.5]} 31... Qxf4 {[%clk 0:00:11.1]} 32. Rxf4
{[%clk 0:00:27.5]} 32... Bd5 {[%clk 0:00:11.1]} 33. Nc3 {[%clk 0:00:24.7]} 33...
Bb7 {[%clk 0:00:05.8]} 34. Rg4 {[%clk 0:00:24.7]} 34... Bf6 {[%clk 0:00:05.1]}
35. Nf3 {[%clk 0:00:23.9]} 35... d5 {[%clk 0:00:04.9]} 36. Rg6 {[%clk
0:00:22.2]} 36... Ke7 {[%clk 0:00:04.7]} 37. Nd2 {[%clk 0:00:21.2]} 37... d4
{[%clk 0:00:04.8]} 38. Nce4 {[%clk 0:00:20.7]} 38... Be5 {[%clk 0:00:03.8]} 39.
Nc5 {[%clk 0:00:17.4]} 39... Bd5 {[%clk 0:00:02.8]} 40. Nf3 {[%clk 0:00:14.8]}
40... Bh8 {[%clk 0:00:02]} 41. Rg5 {[%clk 0:00:14.4]} 41... d3+ {[%clk
0:00:02.8]} 42. c3 {[%clk 0:00:14]} 42... Rf1 {[%clk 0:00:03.2]} 43. Rg7+ {[%clk
0:00:13.8]} 43... Bxg7 {[%clk 0:00:01.5]} 44. Ne5 {[%clk 0:00:14.7]} 44... Rf2+
{[%clk 0:00:01.6]} 45. Kb1 {[%clk 0:00:14.5]} 45... Rf1+ {[%clk 0:00:02.5]} 46.
Kb2 {[%clk 0:00:14.4]} 46... Rf2+ {[%clk 0:00:03.4]} 47. Kb1 {[%clk 0:00:15]}
47... d2 {[%clk 0:00:04.3]} 48. Nc6+ {[%clk 0:00:14.4]} 48... Kd6 {[%clk
0:00:04.1]} 49. Ne4+ {[%clk 0:00:13.4]} 49... Kxc6 {[%clk 0:00:04.3]} 50. Kc2
{[%clk 0:00:14.1]} 50... d1=Q+ {[%clk 0:00:03.2]} 51. Kxd1 {[%clk 0:00:15]}
51... Bxe4 {[%clk 0:00:03.2]} 52. Ke1 {[%clk 0:00:15.6]} 52... Bd5 {[%clk
0:00:04.1]} 53. Kxf2 {[%clk 0:00:15.5]} 53... Bxc3 {[%clk 0:00:05]} 54. Ke3
{[%clk 0:00:15.2]} 54... Bxb3 {[%clk 0:00:05.9]} 55. Kd3 {[%clk 0:00:16.1]}
55... Ba5 {[%clk 0:00:04.9]} 56. Ke2 {[%clk 0:00:15.8]} 56... Ba4 {[%clk
0:00:05.8]} 57. Kf2 {[%clk 0:00:15.5]} 57... Kd6 {[%clk 0:00:06.7]} 58. Ke2
{[%clk 0:00:16.4]} 58... e5 {[%clk 0:00:07.6]} 59. Kf2 {[%clk 0:00:17.3]} 59...
Kc5 {[%clk 0:00:08.5]} 60. Ke2 {[%clk 0:00:18.2]} 60... Kc4 {[%clk 0:00:09.4]}
61. Kf2 {[%clk 0:00:19.1]} 61... Kb3 {[%clk 0:00:10.2]} 62. Ke2 {[%clk 0:00:20]}
62... Kxa3 {[%clk 0:00:11]} 63. Kf2 {[%clk 0:00:20.9]} 63... b4 {[%clk
0:00:11.7]} 64. Ke2 {[%clk 0:00:21.8]} 64... b3 {[%clk 0:00:12.5]} 65. Kf2
{[%clk 0:00:22.7]} 65... b2 {[%clk 0:00:13.2]} 66. Ke2 {[%clk 0:00:23.6]} 66...
b1=Q {[%clk 0:00:13.1]} 67. Kf2 {[%clk 0:00:24.5]} 67... Qb3 {[%clk 0:00:13.3]}
68. Ke2 {[%clk 0:00:25.4]} 68... Qc3 {[%clk 0:00:13.1]} 69. Kf2 {[%clk
0:00:26.3]} 69... Be8 {[%clk 0:00:13.5]} 70. Ke2 {[%clk 0:00:27.2]} 70... Bd8
{[%clk 0:00:12.6]} 71. Kf2 {[%clk 0:00:28.1]} 71... Kb4 {[%clk 0:00:13.2]} 72.
Ke2 {[%clk 0:00:29]} 72... a5 {[%clk 0:00:14]} 73. Kf2 {[%clk 0:00:29.9]} 73...
a4 {[%clk 0:00:14.9]} 74. Ke2 {[%clk 0:00:30.8]} 74... a3 {[%clk 0:00:15.8]} 75.
Kf2 {[%clk 0:00:31.7]} 75... a2 {[%clk 0:00:16.7]} 76. Ke2 {[%clk 0:00:32.6]}
76... a1=Q {[%clk 0:00:17]} 77. Kf2 {[%clk 0:00:33.5]} 77... Qab2+ {[%clk
0:00:17.3]} 78. Kf1 {[%clk 0:00:32.3]} 78... Qcc1# {[%clk 0:00:18.2]} 0-1